[Event "Goteborg Open 2024"]
[Site "Goteborgs Schackcentrum, Vegatan 20, Gothenburg, Sweden"]
[Date "2024.08.04"]
[Round "8.7"]
[White "Torres, Lucas"]
[Black "Ask, Josef"]
[Result "0-1"]
[TimeControl "15 minutes + 5 seconds per move from move one (Round 1 - 4) / 90 minutes + 30 seconds per move from move one (Round 5 - 8)"]
[BlackTitle "FM"]
[WhiteFideId "1769464"]
[BlackFideId "1704583"]
[WhiteElo "1861"]
[BlackElo "2129"]

1. e4 {[%clk 01:30:58]} c5 {[%clk 01:30:44]} {[%emt 00:00:17]} 2. Nc3 {[%clk
01:31:27]} {[%emt 00:00:01]} e5 {[%clk 01:26:25]} {[%emt 00:04:49]} 3. g3
{[%clk 01:31:24]} {[%emt 00:00:32]} Nc6 {[%clk 01:26:11]} {[%emt 00:00:45]} 4.
Bg2 {[%clk 01:31:39]} {[%emt 00:00:14]} g6 {[%clk 01:24:24]} {[%emt 00:02:17]}
5. d3 {[%clk 01:31:13]} {[%emt 00:00:56]} Bg7 {[%clk 01:24:01]} {[%emt
00:00:54]} 6. f4 {[%clk 01:30:34]} {[%emt 00:01:08]} exf4 {[%clk 01:20:20]}
{[%emt 00:04:11]} 7. Bxf4 {[%clk 01:30:37]} {[%emt 00:00:27]} d6 {[%clk
01:19:50]} {[%emt 00:01:01]} 8. Nf3 {[%clk 01:29:27]} {[%emt 00:01:39]} h6
{[%clk 01:19:13]} {[%emt 00:01:06]} 9. O-O {[%clk 01:26:28]} {[%emt 00:03:30]}
g5 {[%clk 01:10:14]} {[%emt 00:09:29]} 10. Be3 {[%clk 01:24:08]} {[%emt
00:02:50]} Nge7 {[%clk 01:08:14]} {[%emt 00:02:30]} 11. d4 {[%clk 01:16:23]}
{[%emt 00:08:15]} g4 {[%clk 01:04:12]} {[%emt 00:04:32]} 12. dxc5 {[%clk
01:09:29]} {[%emt 00:07:25]} gxf3 {[%clk 01:03:28]} {[%emt 00:01:13]} 13. Nb5
{[%clk 01:06:40]} {[%emt 00:03:20]} O-O {[%clk 01:02:18]} {[%emt 00:01:40]} 14.
Qxf3 {[%clk 00:58:55]} {[%emt 00:08:13]} Ne5 {[%clk 01:01:37]} {[%emt
00:01:12]} 15. Qh5 {[%clk 00:57:37]} {[%emt 00:01:48]} Bg4 {[%clk 01:00:48]}
{[%emt 00:01:19]} 16. Qh4 {[%clk 00:57:30]} {[%emt 00:00:37]} dxc5 {[%clk
00:58:57]} {[%emt 00:02:22]} 17. Bxc5 {[%clk 00:56:14]} {[%emt 00:01:45]} N7g6
{[%clk 00:58:53]} {[%emt 00:00:34]} 18. Qxd8 {[%clk 00:55:55]} {[%emt
00:00:50]} Rfxd8 {[%clk 00:59:10]} {[%emt 00:00:13]} 19. Nd6 {[%clk 00:55:28]}
{[%emt 00:00:57]} b6 {[%clk 00:57:58]} {[%emt 00:01:42]} 20. Ba3 {[%clk
00:54:47]} {[%emt 00:01:11]} Bf8 {[%clk 00:57:42]} {[%emt 00:00:46]} 21. Nf5
{[%clk 00:53:57]} {[%emt 00:01:19]} Bxa3 {[%clk 00:55:56]} {[%emt 00:02:16]} 22.
bxa3 {[%clk 00:53:47]} {[%emt 00:00:40]} Kh7 {[%clk 00:55:32]} {[%emt
00:00:54]} 23. Rae1 {[%clk 00:53:35]} {[%emt 00:00:42]} Rac8 {[%clk 00:44:01]}
{[%emt 00:12:01]} 24. h3 {[%clk 00:53:24]} {[%emt 00:00:41]} Rd2 {[%clk
00:41:18]} {[%emt 00:03:11]} 25. hxg4 {[%clk 00:51:05]} {[%emt 00:02:52]} Rcxc2
{[%clk 00:40:56]} {[%emt 00:00:52]} 26. Ne3 {[%clk 00:50:19]} {[%emt 00:01:15]}
Rxa2 {[%clk 00:40:57]} {[%emt 00:00:29]} 27. Ra1 {[%clk 00:46:55]} {[%emt
00:03:54]} Rxa1 {[%clk 00:39:46]} {[%emt 00:01:41]} 28. Rxa1 {[%clk 00:45:55]}
{[%emt 00:01:31]} Re2 {[%clk 00:39:46]} {[%emt 00:00:29]} 29. Nd5 {[%clk
00:45:35]} {[%emt 00:00:50]} Kg7 {[%clk 00:37:59]} {[%emt 00:02:16]} 30. a4
{[%clk 00:43:25]} {[%emt 00:02:41]} Rc2 {[%clk 00:34:28]} {[%emt 00:04:01]} 31.
Ne3 {[%clk 00:36:08]} {[%emt 00:07:46]} Rb2 {[%clk 00:34:33]} {[%emt 00:00:26]}
32. Nf5+ {[%clk 00:35:08]} {[%emt 00:01:29]} Kh7 {[%clk 00:34:41]} {[%emt
00:00:23]} 33. Ne3 {[%clk 00:35:12]} {[%emt 00:00:25]} Rb3 {[%clk 00:32:03]}
{[%emt 00:03:08]} 34. Nf5 {[%clk 00:28:39]} {[%emt 00:07:04]} Nxg4 {[%clk
00:31:49]} {[%emt 00:00:44]} 35. Bh3 {[%clk 00:25:46]} {[%emt 00:03:22]} N4e5
{[%clk 00:30:54]} {[%emt 00:01:26]} 36. Bg2 {[%clk 00:25:17]} {[%emt 00:00:59]}
a5 {[%clk 00:29:32]} {[%emt 00:01:52]} 37. Kh2 {[%clk 00:17:51]} {[%emt
00:07:57]} Ng4+ {[%clk 00:27:41]} {[%emt 00:02:21]} 38. Kg1 {[%clk 00:18:01]}
{[%emt 00:00:19]} N6e5 {[%clk 00:27:13]} {[%emt 00:00:58]} 39. Bh3 {[%clk
00:16:59]} {[%emt 00:01:31]} h5 {[%clk 00:25:40]} {[%emt 00:02:04]} 40. Bxg4
{[%clk 00:16:44]} {[%emt 00:00:45]} hxg4 {[%clk 00:25:52]} {[%emt 00:00:18]} 41.
Kf2 {[%clk 00:16:24]} {[%emt 00:00:49]} Rb2+ {[%clk 00:23:36]} {[%emt
00:02:47]} 42. Ke3 {[%clk 00:15:12]} {[%emt 00:01:42]} f6 {[%clk 00:17:59]}
{[%emt 00:06:08]} 43. Rc1 {[%clk 00:11:25]} {[%emt 00:04:16]} Rb3+ {[%clk
00:17:22]} {[%emt 00:01:07]} 44. Ke2 {[%clk 00:11:34]} {[%emt 00:00:21]} Rb4
{[%clk 00:14:07]} {[%emt 00:03:45]} 45. Rc7+ {[%clk 00:11:17]} {[%emt
00:00:46]} Kg8 {[%clk 00:14:14]} {[%emt 00:00:24]} 46. Ne7+ {[%clk 00:06:31]}
{[%emt 00:05:16]} Kf8 {[%clk 00:14:01]} {[%emt 00:00:43]} 47. Nd5 {[%clk
00:06:40]} {[%emt 00:00:20]} Rxe4+ {[%clk 00:13:37]} {[%emt 00:00:55]} 48. Kf1
{[%clk 00:06:32]} {[%emt 00:00:37]} Rc4 {[%clk 00:12:36]} {[%emt 00:01:31]} 49.
Rb7 {[%clk 00:04:12]} {[%emt 00:02:51]} Rxa4 {[%clk 00:12:18]} {[%emt
00:00:48]} 50. Rxb6 {[%clk 00:04:13]} {[%emt 00:00:29]} Ra1+ {[%clk 00:12:12]}
{[%emt 00:00:36]} 51. Ke2 {[%clk 00:04:22]} {[%emt 00:00:20]} Ra2+ {[%clk
00:11:36]} {[%emt 00:01:07]} 52. Kf1 {[%clk 00:04:09]} {[%emt 00:00:42]} Kg7
{[%clk 00:10:45]} {[%emt 00:01:21]} 53. Nxf6 {[%clk 00:03:13]} {[%emt
00:01:26]} a4 {[%clk 00:10:41]} {[%emt 00:00:35]} 54. Nd5 {[%clk 00:02:33]}
{[%emt 00:01:09]} a3 {[%clk 00:10:17]} {[%emt 00:00:54]} 55. Ra6 {[%clk
00:02:09]} {[%emt 00:00:53]} Nc4 {[%clk 00:09:23]} {[%emt 00:01:24]} 56. Ra4
{[%clk 00:01:02]} {[%emt 00:01:37]} Rc2 {[%clk 00:09:27]} {[%emt 00:00:27]} 57.
Nb4 {[%clk 00:01:04]} {[%emt 00:00:28]} Rb2 {[%clk 00:08:11]} {[%emt 00:01:45]}
58. Nd3 {[%clk 00:01:04]} {[%emt 00:00:30]} Rc2 {[%clk 00:07:27]} {[%emt
00:01:15]} 59. Nb4 {[%clk 00:01:25]} {[%emt 00:00:09]} Rc3 {[%clk 00:06:59]}
{[%emt 00:00:58]} 60. Kf2 {[%clk 00:01:09]} {[%emt 00:00:46]} Rf3+ {[%clk
00:07:05]} {[%emt 00:00:24]} 61. Kg2 {[%clk 00:01:20]} {[%emt 00:00:19]} Ne3+
{[%clk 00:07:00]} {[%emt 00:00:35]} 62. Kh2 {[%clk 00:01:32]} {[%emt 00:00:18]}
Nf1+ {[%clk 00:06:31]} {[%emt 00:00:58]} 63. Kg2 {[%clk 00:01:58]} {[%emt
00:00:05]} Ne3+ {[%clk 00:06:25]} {[%emt 00:00:37]} 64. Kh2 {[%clk 00:02:22]}
{[%emt 00:00:06]} Rf2+ {[%clk 00:05:17]} {[%emt 00:01:37]} 65. Kh1 {[%clk
00:02:10]} {[%emt 00:00:41]} Nc4 {[%clk 00:05:15]} {[%emt 00:00:33]} 66. Kg1
{[%clk 00:02:16]} {[%emt 00:00:23]} Rb2 {[%clk 00:05:14]} {[%emt 00:00:32]} 67.
Nd3 {[%clk 00:02:24]} {[%emt 00:00:23]} Rc2 {[%clk 00:05:21]} {[%emt 00:00:23]}
68. Nb4 {[%clk 00:02:50]} {[%emt 00:00:04]} Rc1+ {[%clk 00:05:35]} {[%emt
00:00:15]} 69. Kf2 {[%clk 00:03:07]} {[%emt 00:00:13]} Kf7 {[%clk 00:04:48]}
{[%emt 00:01:16]} 70. Ke2 {[%clk 00:01:28]} {[%emt 00:02:10]} Ke6 {[%clk
00:04:47]} {[%emt 00:00:30]} 71. Kf2 {[%clk 00:00:53]} {[%emt 00:01:06]} Kd6
{[%clk 00:04:39]} {[%emt 00:00:38]} 72. Ke2 {[%clk 00:00:57]} {[%emt 00:00:26]}
Kc7 {[%clk 00:04:26]} {[%emt 00:00:43]} 73. Nd5+ {[%clk 00:00:45]} {[%emt
00:00:42]} Kc6 {[%clk 00:04:15]} {[%emt 00:00:40]} 74. Ne3 {[%clk 00:01:00]}
{[%emt 00:00:16]} Kb5 {[%clk 00:03:50]} {[%emt 00:00:56]} 75. Ra8 {[%clk
00:01:13]} {[%emt 00:00:16]} Nxe3 {[%clk 00:03:30]} {[%emt 00:00:50]} 76. Kxe3
{[%clk 00:01:39]} {[%emt 00:00:05]} Kb4 {[%clk 00:03:11]} {[%emt 00:00:49]} 77.
Kf4 {[%clk 00:01:16]} {[%emt 00:00:52]} Rc4 {[%clk 00:03:30]} {[%emt 00:00:11]}
78. Ke3 {[%clk 00:00:40]} {[%emt 00:01:06]} Kb3 {[%clk 00:03:43]} {[%emt
00:00:18]} 79. Rb8+ {[%clk 00:00:50]} {[%emt 00:00:19]} Rb4 {[%clk 00:03:54]}
{[%emt 00:00:20]} 80. Rd8 {[%clk 00:00:40]} {[%emt 00:00:39]} a2 {[%clk
00:04:01]} {[%emt 00:00:23]} 81. Rd1 {[%clk 00:00:35]} {[%emt 00:00:35]} Ka3
{[%clk 00:03:24]} {[%emt 00:01:08]} 82. Rd8 {[%clk 00:00:31]} {[%emt 00:00:33]}
a1=Q {[%clk 00:03:32]} 0-1

[ePGN "0.1;DGT LiveChess/2.2.6"]

[Event "Goteborg Open 2024"]
[Site "Goteborgs Schackcentrum, Vegatan 20, Gothenburg, Sweden"]
[Date "2024.08.04"]
[Round "8.8"]
[White "Mohammed, Safian Haj"]
[Black "Lindholm, Marcus"]
[Result "1-0"]
[TimeControl "15 minutes + 5 seconds per move from move one (Round 1 - 4) / 90 minutes + 30 seconds per move from move one (Round 5 - 8)"]
[WhiteFideId "1729276"]
[BlackFideId "1743473"]
[WhiteElo "1890"]
[BlackElo "1851"]

1. e4 {[%clk 01:29:29]} {[%emt 00:01:31]} c5 {[%clk 01:29:29]} {[%emt
00:01:32]} 2. Nf3 {[%clk 01:29:38]} {[%emt 00:00:21]} Nc6 {[%clk 01:29:44]}
{[%emt 00:00:15]} 3. d4 {[%clk 01:30:00]} {[%emt 00:00:08]} cxd4 {[%clk
01:30:08]} {[%emt 00:00:06]} 4. Nxd4 {[%clk 01:30:27]} {[%emt 00:00:02]} Nf6
{[%clk 01:30:30]} {[%emt 00:00:09]} 5. Nc3 {[%clk 01:30:52]} {[%emt 00:00:06]}
e5 {[%clk 01:30:54]} {[%emt 00:00:06]} 6. Ndb5 {[%clk 01:31:00]} {[%emt
00:00:21]} d6 {[%clk 01:31:15]} {[%emt 00:00:09]} 7. Bg5 {[%clk 01:31:17]}
{[%emt 00:00:13]} a6 {[%clk 01:31:31]} {[%emt 00:00:14]} 8. Na3 {[%clk
01:31:41]} {[%emt 00:00:06]} b5 {[%clk 01:31:22]} {[%emt 00:00:38]} 9. Nd5
{[%clk 01:32:06]} {[%emt 00:00:07]} Be7 {[%clk 01:31:41]} {[%emt 00:00:10]} 10.
Bxf6 {[%clk 01:32:26]} {[%emt 00:00:10]} Bxf6 {[%clk 01:32:02]} {[%emt
00:00:09]} 11. c3 {[%clk 01:32:31]} {[%emt 00:00:24]} Bg5 {[%clk 01:32:19]}
{[%emt 00:00:13]} 12. Nc2 {[%clk 01:31:07]} {[%emt 00:01:55]} O-O {[%clk
01:32:27]} {[%emt 00:00:21]} 13. h4 {[%clk 01:30:51]} {[%emt 00:00:47]} Be7
{[%clk 01:31:34]} {[%emt 00:01:23]} 14. Nce3 {[%clk 01:30:04]} {[%emt
00:01:17]} f5 {[%clk 01:31:25]} {[%emt 00:00:38]} 15. exf5 {[%clk 01:29:29]}
{[%emt 00:01:05]} Bxf5 {[%clk 01:31:02]} {[%emt 00:00:54]} 16. Nxf5 {[%clk
01:29:53]} {[%emt 00:00:06]} Rxf5 {[%clk 01:31:20]} {[%emt 00:00:11]} 17. Bd3
{[%clk 01:22:08]} {[%emt 00:08:15]} Rf7 {[%clk 01:22:25]} {[%emt 00:09:25]} 18.
Qh5 {[%clk 01:21:36]} {[%emt 00:01:02]} g6 {[%clk 01:22:36]} {[%emt 00:00:20]}
19. Qg4 {[%clk 01:21:33]} {[%emt 00:00:33]} Qc8 {[%clk 01:19:32]} {[%emt
00:03:34]} 20. Qe2 {[%clk 01:21:44]} {[%emt 00:00:19]} Qe6 {[%clk 01:19:32]}
{[%emt 00:00:30]} 21. Nc7 {[%clk 01:21:12]} {[%emt 00:01:01]} Qf6 {[%clk
01:17:56]} {[%emt 00:02:07]} 22. Nxa8 {[%clk 01:21:11]} {[%emt 00:00:31]} d5
{[%clk 01:16:32]} {[%emt 00:01:54]} 23. Nb6 {[%clk 01:20:42]} {[%emt 00:01:00]}
Bc5 {[%clk 01:14:37]} {[%emt 00:02:24]} 24. Nxd5 {[%clk 01:20:48]} {[%emt
00:00:24]} Bxf2+ {[%clk 01:14:56]} {[%emt 00:00:11]} 25. Kd1 {[%clk 01:18:07]}
{[%emt 00:03:11]} Qd6 {[%clk 01:14:04]} {[%emt 00:01:22]} 26. Be4 {[%clk
01:17:22]} {[%emt 00:01:15]} Ne7 {[%clk 01:06:12]} {[%emt 00:08:22]} 27. Qd3
{[%clk 01:17:30]} {[%emt 00:00:22]} Nf5 {[%clk 01:05:18]} {[%emt 00:01:23]} 28.
h5 {[%clk 01:13:51]} {[%emt 00:04:09]} Ng3 {[%clk 01:00:51]} {[%emt 00:04:57]}
29. hxg6 {[%clk 01:13:47]} {[%emt 00:00:34]} Rf8 {[%clk 00:58:11]} {[%emt
00:03:10]} 30. Rxh7 {[%clk 01:11:39]} {[%emt 00:02:38]} Bc5 {[%clk 00:56:14]}
{[%emt 00:02:27]} 31. Ne7+ {[%clk 01:11:08]} {[%emt 00:01:01]} 1-0

[ePGN "0.1;DGT LiveChess/2.2.6"]

[Event "Goteborg Open 2024"]
[Site "Goteborgs Schackcentrum, Vegatan 20, Gothenburg, Sweden"]
[Date "2024.08.04"]
[Round "8.9"]
[White "Johansson, Eva"]
[Black "Westlund, Tim"]
[Result "1-0"]
[TimeControl "15 minutes + 5 seconds per move from move one (Round 1 - 4) / 90 minutes + 30 seconds per move from move one (Round 5 - 8)"]
[WhiteFideId "1724584"]
[BlackFideId "1754718"]
[WhiteElo "1878"]
[BlackElo "1886"]

1. d4 {[%clk 01:30:57]} {[%emt 00:00:02]} Nf6 {[%clk 01:30:53]} {[%emt
00:00:07]} 2. c4 {[%clk 01:31:21]} {[%emt 00:00:06]} e6 {[%clk 01:31:05]}
{[%emt 00:00:18]} 3. Nf3 {[%clk 01:31:42]} {[%emt 00:00:09]} d5 {[%clk
01:30:48]} {[%emt 00:00:47]} 4. g3 {[%clk 01:32:05]} {[%emt 00:00:07]} Bb4+
{[%clk 01:31:06]} {[%emt 00:00:12]} 5. Bd2 {[%clk 01:32:26]} {[%emt 00:00:10]}
Be7 {[%clk 01:31:23]} {[%emt 00:00:12]} 6. Bg2 {[%clk 01:32:20]} {[%emt
00:00:36]} c6 {[%clk 01:30:47]} {[%emt 00:01:07]} 7. Qc2 {[%clk 01:31:09]}
{[%emt 00:01:41]} Nbd7 {[%clk 01:30:17]} {[%emt 00:00:59]} 8. O-O {[%clk
01:30:57]} {[%emt 00:00:41]} O-O {[%clk 01:30:37]} {[%emt 00:00:11]} 9. Bf4
{[%clk 01:26:53]} {[%emt 00:04:34]} Ne4 {[%clk 01:30:17]} {[%emt 00:00:52]} 10.
Nbd2 {[%clk 01:26:49]} {[%emt 00:00:32]} f5 {[%clk 01:28:57]} {[%emt 00:01:50]}
11. Ne1 {[%clk 01:23:04]} {[%emt 00:04:08]} g5 {[%clk 01:27:09]} {[%emt
00:02:25]} 12. Be5 {[%clk 01:23:27]} {[%emt 00:00:07]} Nxe5 {[%clk 01:26:25]}
{[%emt 00:01:15]} 13. dxe5 {[%clk 01:23:55]} {[%emt 00:00:02]} Kh8 {[%clk
01:25:15]} {[%emt 00:01:39]} 14. Rd1 {[%clk 01:22:25]} {[%emt 00:01:59]} Qb6
{[%clk 01:24:21]} {[%emt 00:01:25]} 15. Nd3 {[%clk 01:21:33]} {[%emt 00:01:19]}
Bd7 {[%clk 01:22:07]} {[%emt 00:02:47]} 16. a3 {[%clk 01:19:41]} {[%emt
00:02:22]} Nc5 {[%clk 01:19:35]} {[%emt 00:03:02]} 17. b4 {[%clk 01:17:49]}
{[%emt 00:02:22]} Nxd3 {[%clk 01:19:24]} {[%emt 00:00:41]} 18. Qxd3 {[%clk
01:18:07]} {[%emt 00:00:12]} Rf7 {[%clk 01:17:55]} {[%emt 00:01:59]} 19. e4
{[%clk 01:14:38]} {[%emt 00:03:53]} fxe4 {[%clk 01:11:37]} {[%emt 00:06:54]} 20.
Nxe4 {[%clk 01:12:44]} {[%emt 00:02:23]} Raf8 {[%clk 01:09:45]} {[%emt
00:02:23]} 21. c5 {[%clk 01:12:06]} {[%emt 00:01:07]} Qd8 {[%clk 01:08:25]}
{[%emt 00:01:51]} 22. Nd6 {[%clk 01:11:20]} {[%emt 00:01:16]} Bxd6 {[%clk
01:08:45]} {[%emt 00:00:11]} 23. cxd6 {[%clk 01:11:47]} {[%emt 00:00:02]} Qb6
{[%clk 01:07:33]} {[%emt 00:01:38]} 24. Qc2 {[%clk 01:08:06]} {[%emt 00:04:04]}
Rf5 {[%clk 01:02:10]} {[%emt 00:06:04]} 25. Rd2 {[%clk 01:04:12]} {[%emt
00:04:25]} Qa6 {[%clk 00:53:34]} {[%emt 00:09:05]} 26. Qb2 {[%clk 01:03:13]}
{[%emt 00:01:14]} b6 {[%clk 00:51:07]} {[%emt 00:03:12]} 27. Re1 {[%clk
01:01:21]} {[%emt 00:02:20]} c5 {[%clk 00:49:03]} {[%emt 00:02:36]} 28. Bxd5
{[%clk 01:01:10]} {[%emt 00:00:41]} exd5 {[%clk 00:48:27]} {[%emt 00:01:06]} 29.
e6+ {[%clk 01:01:32]} {[%emt 00:00:08]} d4 {[%clk 00:48:35]} {[%emt 00:00:23]}
30. exd7 {[%clk 01:01:42]} {[%emt 00:00:19]} Rd8 {[%clk 00:39:41]} {[%emt
00:09:24]} 31. Re8+ {[%clk 01:01:27]} {[%emt 00:00:45]} Rf8 {[%clk 00:40:03]}
{[%emt 00:00:07]} 32. Rde2 {[%clk 01:00:56]} {[%emt 00:01:02]} b5 {[%clk
00:34:53]} {[%emt 00:05:40]} 33. Rxd8 {[%clk 01:01:00]} {[%emt 00:00:26]} Rxd8
{[%clk 00:34:49]} {[%emt 00:00:34]} 34. Re8+ {[%clk 01:01:22]} {[%emt
00:00:07]} Kg7 {[%clk 00:35:02]} {[%emt 00:00:18]} 35. Rxd8 {[%clk 01:00:57]}
{[%emt 00:00:54]} Qxd6 {[%clk 00:34:34]} {[%emt 00:00:58]} 36. bxc5 {[%clk
01:00:45]} {[%emt 00:00:43]} Qd5 {[%clk 00:34:06]} {[%emt 00:00:58]} 37. c6
{[%clk 01:00:36]} {[%emt 00:00:39]} Qxc6 {[%clk 00:32:13]} {[%emt 00:02:22]} 38.
Rg8+ {[%clk 01:00:51]} {[%emt 00:00:16]} Kxg8 {[%clk 00:32:15]} {[%emt
00:00:27]} 39. d8=Q+ {[%emt 00:00:08]} Kf7 {[%clk 00:32:06]} {[%emt 00:00:33]}
40. Qdxd4 {[%clk 01:01:39]} {[%emt 00:00:10]} Qg6 {[%clk 00:32:03]} {[%emt
00:00:33]} 41. Qb3+ {[%clk 01:01:39]} 1-0

[ePGN "0.1;DGT LiveChess/2.2.6"]

[Event "Goteborg Open 2024"]
[Site "Goteborgs Schackcentrum, Vegatan 20, Gothenburg, Sweden"]
[Date "2024.08.04"]
[Round "8.10"]
[White "Karlsson, Stefan"]
[Black "Ulmer, Maya Vissing"]
[Result "1/2-1/2"]
[TimeControl "15 minutes + 5 seconds per move from move one (Round 1 - 4) / 90 minutes + 30 seconds per move from move one (Round 5 - 8)"]
[WhiteFideId "1771183"]
[BlackFideId "1479997"]
[WhiteElo "2042"]
[BlackElo "1676"]

1. e4 {[%clk 01:30:48]} {[%emt 00:00:09]} c6 {[%clk 01:30:57]} {[%emt
00:00:06]} 2. d4 {[%clk 01:31:13]} {[%emt 00:00:04]} d5 {[%clk 01:31:23]}
{[%emt 00:00:04]} 3. e5 {[%clk 01:31:38]} {[%emt 00:00:05]} Bf5 {[%clk
01:31:49]} {[%emt 00:00:05]} 4. h4 {[%clk 01:31:46]} {[%emt 00:00:22]} h5
{[%clk 01:32:13]} {[%emt 00:00:06]} 5. c4 {[%clk 01:32:11]} {[%emt 00:00:05]}
e6 {[%clk 01:32:36]} {[%emt 00:00:06]} 6. Nc3 {[%clk 01:32:37]} {[%emt
00:00:04]} dxc4 {[%clk 01:32:57]} {[%emt 00:00:09]} 7. Bxc4 {[%clk 01:32:59]}
{[%emt 00:00:09]} Nd7 {[%clk 01:33:06]} {[%emt 00:00:20]} 8. Nge2 {[%clk
01:32:59]} {[%emt 00:00:30]} Be7 {[%clk 01:32:57]} {[%emt 00:00:40]} 9. Ng3
{[%clk 01:21:22]} {[%emt 00:12:06]} Bg6 {[%clk 01:25:26]} {[%emt 00:08:02]} 10.
Bg5 {[%clk 01:04:18]} {[%emt 00:17:34]} Bxg5 {[%clk 01:14:25]} {[%emt
00:11:30]} 11. hxg5 {[%clk 01:04:46]} {[%emt 00:00:02]} Qxg5 {[%clk 01:14:33]}
{[%emt 00:00:23]} 12. Nce4 {[%clk 01:01:45]} {[%emt 00:03:30]} Bxe4 {[%clk
01:11:21]} {[%emt 00:03:42]} 13. Nxe4 {[%clk 01:02:09]} {[%emt 00:00:06]} Qxg2
{[%clk 01:08:50]} {[%emt 00:03:02]} 14. Nd6+ {[%clk 00:58:15]} {[%emt
00:04:23]} Kf8 {[%clk 01:07:57]} {[%emt 00:01:23]} 15. Rxh5 {[%clk 00:57:45]}
{[%emt 00:01:00]} Rxh5 {[%clk 01:06:10]} {[%emt 00:02:18]} 16. Qxh5 {[%clk
00:55:56]} {[%emt 00:02:19]} Nh6 {[%clk 01:06:27]} {[%emt 00:00:12]} 17. O-O-O
{[%clk 00:39:55]} {[%emt 00:16:31]} b5 {[%clk 01:01:24]} {[%emt 00:05:33]} 18.
Bd3 {[%clk 00:29:23]} {[%emt 00:11:01]} Qg4 {[%clk 00:55:08]} {[%emt 00:06:47]}
19. Qxg4 {[%clk 00:22:58]} {[%emt 00:06:56]} Nxg4 {[%clk 00:55:22]} {[%emt
00:00:16]} 20. Rh1 {[%clk 00:18:49]} {[%emt 00:04:38]} Ke7 {[%clk 00:52:12]}
{[%emt 00:03:40]} 21. Rg1 {[%clk 00:18:50]} {[%emt 00:00:27]} Nxf2 {[%clk
00:51:50]} {[%emt 00:00:54]} 22. Be2 {[%clk 00:09:39]} {[%emt 00:09:41]} Rg8
{[%clk 00:42:53]} {[%emt 00:09:27]} 23. Rf1 {[%clk 00:09:21]} {[%emt 00:00:48]}
Nh3 {[%clk 00:43:13]} {[%emt 00:00:11]} 24. Rxf7+ {[%clk 00:09:10]} {[%emt
00:00:40]} Kd8 {[%clk 00:43:38]} {[%emt 00:00:05]} 25. Nb7+ {[%clk 00:08:06]}
{[%emt 00:01:34]} Ke8 {[%clk 00:42:05]} {[%emt 00:02:04]} 26. Nd6+ {[%clk
00:07:18]} {[%emt 00:01:18]} Kd8 {[%clk 00:42:26]} {[%emt 00:00:09]} 27. Ne4
{[%clk 00:02:28]} {[%emt 00:05:19]} Ke8 {[%clk 00:41:24]} {[%emt 00:01:32]} 28.
Bh5 {[%clk 00:02:31]} {[%emt 00:00:27]} g6 {[%clk 00:41:14]} {[%emt 00:00:41]}
29. Rxd7 {[%clk 00:01:58]} {[%emt 00:01:03]} Kxd7 {[%clk 00:39:56]} {[%emt
00:01:48]} 30. Nf6+ {[%clk 00:02:22]} {[%emt 00:00:06]} Kc7 {[%clk 00:40:07]}
{[%emt 00:00:19]} 31. Nxg8 {[%clk 00:02:31]} {[%emt 00:00:20]} gxh5 {[%clk
00:40:31]} {[%emt 00:00:07]} 32. Kd2 {[%clk 00:01:34]} {[%emt 00:01:27]} Nf4
{[%clk 00:39:50]} {[%emt 00:01:10]} 1/2-1/2

[ePGN "0.1;DGT LiveChess/2.2.6"]